[Event "Early-Titled-Tuesday-Blitz-March-19-2024"]
[Site "Chess.com"]
[Date "2024.03.19"]
[Round "2"]
[White "ChempionBg"]
[Black "Lady_Nika"]
[Result "0-1"]
[WhiteElo "2367"]
[BlackElo "2581"]
[TimeControl "180+1"]
[EndTime "8:18:29 PDT"]
[Termination "Lady_Nika won by checkmate"]

1. d4 {[%clk 0:02:57.4]} 1... d5 {[%clk 0:03:00]} 2. c4 {[%clk 0:02:46.3]} 2...
e6 {[%clk 0:02:59.8]} 3. Nf3 {[%clk 0:02:46]} 3... Nf6 {[%clk 0:03:00.1]} 4. g3
{[%clk 0:02:46]} 4... Be7 {[%clk 0:03:00.3]} 5. Bg2 {[%clk 0:02:46.1]} 5... O-O
{[%clk 0:03:00.4]} 6. O-O {[%clk 0:02:46.7]} 6... b6 {[%clk 0:03:00.3]} 7. cxd5
{[%clk 0:02:45.9]} 7... exd5 {[%clk 0:02:59.7]} 8. Nc3 {[%clk 0:02:46]} 8... Bb7
{[%clk 0:02:59.9]} 9. Ne5 {[%clk 0:02:46.6]} 9... Nbd7 {[%clk 0:02:57.2]} 10.
Bf4 {[%clk 0:02:46.8]} 10... c6 {[%clk 0:02:56.9]} 11. Rc1 {[%clk 0:02:46.5]}
11... Rc8 {[%clk 0:02:54.7]} 12. a3 {[%clk 0:02:45.1]} 12... a5 {[%clk
0:02:54.4]} 13. Qb3 {[%clk 0:02:35]} 13... Nxe5 {[%clk 0:02:47.8]} 14. dxe5
{[%clk 0:02:32]} 14... Nd7 {[%clk 0:02:47.2]} 15. e4 {[%clk 0:02:29.6]} 15...
Nc5 {[%clk 0:02:44.5]} 16. Qd1 {[%clk 0:02:24.4]} 16... d4 {[%clk 0:02:42.6]}
17. Ne2 {[%clk 0:02:22.5]} 17... Ba6 {[%clk 0:02:40.6]} 18. Nxd4 {[%clk
0:02:09.7]} 18... Bxf1 {[%clk 0:02:38.7]} 19. Kxf1 {[%clk 0:02:07.7]} 19... Ne6
{[%clk 0:02:36]} 20. Nxe6 {[%clk 0:01:34.1]} 20... Qxd1+ {[%clk 0:02:34.4]} 21.
Rxd1 {[%clk 0:01:34.4]} 21... fxe6 {[%clk 0:02:35.1]} 22. Bh3 {[%clk 0:01:33.5]}
22... Kf7 {[%clk 0:02:35.1]} 23. Be3 {[%clk 0:01:30.9]} 23... c5 {[%clk
0:02:20]} 24. Rd7 {[%clk 0:01:19.7]} 24... Rfd8 {[%clk 0:02:18.1]} 25. Rb7
{[%clk 0:01:19.4]} 25... Rb8 {[%clk 0:02:17.8]} 26. Ra7 {[%clk 0:01:19.7]} 26...
h6 {[%clk 0:02:12.1]} 27. Ke2 {[%clk 0:01:13.7]} 27... Ra8 {[%clk 0:02:04.8]}
28. Rb7 {[%clk 0:01:11.8]} 28... Rdb8 {[%clk 0:02:04.5]} 29. Rd7 {[%clk
0:01:09.4]} 29... a4 {[%clk 0:01:59.4]} 30. Bg4 {[%clk 0:00:58.2]} 30... Rd8
{[%clk 0:01:57.9]} 31. Rb7 {[%clk 0:00:55.9]} 31... Rab8 {[%clk 0:01:57.5]} 32.
Ra7 {[%clk 0:00:53.8]} 32... b5 {[%clk 0:01:56.7]} 33. Bxc5 {[%clk 0:00:51.8]}
33... Re8 {[%clk 0:01:52.6]} 34. Bh5+ {[%clk 0:00:40.9]} 34... g6 {[%clk
0:01:52.4]} 35. Bxe7 {[%clk 0:00:32.5]} 35... Rxe7 {[%clk 0:01:51.1]} 36. Bxg6+
{[%clk 0:00:31.7]} 36... Kf8 {[%clk 0:01:51]} 37. Ra6 {[%clk 0:00:26.1]} 37...
Kg7 {[%clk 0:01:49.2]} 38. Bh5 {[%clk 0:00:23.6]} 38... Rc7 {[%clk 0:01:43.1]}
39. Rxe6 {[%clk 0:00:19.8]} 39... Rc2+ {[%clk 0:01:42.7]} 40. Kf3 {[%clk
0:00:19.2]} 40... Rf8+ {[%clk 0:01:39]} 41. Kg4 {[%clk 0:00:17.8]} 41... Rfxf2
{[%clk 0:01:38.2]} 42. Re7+ {[%clk 0:00:16.3]} 42... Kg8 {[%clk 0:01:38.1]} 43.
h4 {[%clk 0:00:12.5]} 43... Rxb2 {[%clk 0:01:36.3]} 44. e6 {[%clk 0:00:12.6]}
44... Rbe2 {[%clk 0:01:28.5]} 45. Bf7+ {[%clk 0:00:11.2]} 45... Kf8 {[%clk
0:01:27.1]} 46. Re8+ {[%clk 0:00:10]} 46... Kg7 {[%clk 0:01:27]} 47. Rg8+ {[%clk
0:00:08]} 47... Kf6 {[%clk 0:01:26.8]} 48. Rg6+ {[%clk 0:00:07.8]} 48... Ke7
{[%clk 0:01:26.7]} 49. Rxh6 {[%clk 0:00:07.7]} 49... Rxe4+ {[%clk 0:01:26.5]}
50. Kh5 {[%clk 0:00:07]} 50... Rf5+ {[%clk 0:01:24.1]} 51. Kg6 {[%clk
0:00:06.3]} 51... Rf6+ {[%clk 0:01:24.3]} 52. Kg7 {[%clk 0:00:06.6]} 52... Rxh6
{[%clk 0:01:23.4]} 53. Kxh6 {[%clk 0:00:06.7]} 53... b4 {[%clk 0:01:23.7]} 54.
axb4 {[%clk 0:00:01.9]} 54... a3 {[%clk 0:01:23.8]} 55. b5 {[%clk 0:00:02.2]}
55... a2 {[%clk 0:01:24.1]} 56. b6 {[%clk 0:00:02.6]} 56... a1=Q {[%clk
0:01:24.5]} 57. b7 {[%clk 0:00:03.1]} 57... Qh8+ {[%clk 0:01:24.2]} 58. Kg5
{[%clk 0:00:02.4]} 58... Qb8 {[%clk 0:01:21.8]} 59. h5 {[%clk 0:00:01.8]} 59...
Qxb7 {[%clk 0:01:21.3]} 60. h6 {[%clk 0:00:01.5]} 60... Qd5+ {[%clk 0:01:21.2]}
61. Kg6 {[%clk 0:00:01.3]} 61... Rg4+ {[%clk 0:01:21]} 62. Kh7 {[%clk
0:00:01.7]} 62... Qg5 {[%clk 0:01:19.3]} 63. Kh8 {[%clk 0:00:01.2]} 63... Qxh6#
{[%clk 0:01:19]} 0-1

[Event "Early-Titled-Tuesday-Blitz-March-19-2024"]
[Site "Chess.com"]
[Date "2024.03.19"]
[Round "2"]
[White "wild3000"]
[Black "Iskusnyh"]
[Result "1-0"]
[WhiteElo "2425"]
[BlackElo "2637"]
[TimeControl "180+1"]
[EndTime "8:18:30 PDT"]
[Termination "wild3000 won on time"]

1. e4 {[%clk 0:02:59.1]} 1... e6 {[%clk 0:02:53.1]} 2. Nf3 {[%clk 0:02:58.8]}
2... d5 {[%clk 0:02:51.9]} 3. e5 {[%clk 0:02:59]} 3... c5 {[%clk 0:02:45.2]} 4.
b4 {[%clk 0:02:58.9]} 4... d4 {[%clk 0:02:44.4]} 5. Bd3 {[%clk 0:02:52.9]} 5...
Nc6 {[%clk 0:02:28.6]} 6. bxc5 {[%clk 0:02:52.6]} 6... Bxc5 {[%clk 0:02:26.3]}
7. Ba3 {[%clk 0:02:50.4]} 7... Qa5 {[%clk 0:02:15.5]} 8. Qc1 {[%clk 0:02:43.4]}
8... Nxe5 {[%clk 0:02:05.2]} 9. Nxe5 {[%clk 0:02:35.4]} 9... Bxa3 {[%clk
0:02:05]} 10. Nxa3 {[%clk 0:02:24.8]} 10... Qxe5+ {[%clk 0:02:04]} 11. Kf1
{[%clk 0:02:25.4]} 11... Nf6 {[%clk 0:01:58.7]} 12. Qb2 {[%clk 0:02:07.2]} 12...
O-O {[%clk 0:01:49.8]} 13. Nb5 {[%clk 0:01:54.7]} 13... Rd8 {[%clk 0:01:35.7]}
14. a4 {[%clk 0:01:46.3]} 14... Bd7 {[%clk 0:01:32.9]} 15. h3 {[%clk 0:01:39.9]}
15... Bc6 {[%clk 0:01:30.3]} 16. Re1 {[%clk 0:01:32.9]} 16... Qg5 {[%clk
0:01:24.6]} 17. Rg1 {[%clk 0:01:23.8]} 17... Qc5 {[%clk 0:00:59.9]} 18. Ra1
{[%clk 0:01:16]} 18... a6 {[%clk 0:00:58.8]} 19. Na3 {[%clk 0:01:07.1]} 19...
Bd5 {[%clk 0:00:56.2]} 20. Nb1 {[%clk 0:00:56.6]} 20... e5 {[%clk 0:00:54.4]}
21. f3 {[%clk 0:00:56.1]} 21... e4 {[%clk 0:00:52.1]} 22. fxe4 {[%clk
0:00:55.5]} 22... Bxe4 {[%clk 0:00:51.8]} 23. g4 {[%clk 0:00:46.7]} 23... Bxd3+
{[%clk 0:00:47.1]} 24. cxd3 {[%clk 0:00:47.6]} 24... Nd5 {[%clk 0:00:44.1]} 25.
Na3 {[%clk 0:00:39.5]} 25... Rd6 {[%clk 0:00:40.2]} 26. Qxb7 {[%clk 0:00:34.5]}
26... Rf6+ {[%clk 0:00:39.7]} 27. Kg2 {[%clk 0:00:34.6]} 27... Rf8 {[%clk
0:00:34.8]} 28. Rgc1 {[%clk 0:00:26.4]} 28... Qd6 {[%clk 0:00:33.2]} 29. Rf1
{[%clk 0:00:22]} 29... Nf4+ {[%clk 0:00:31.3]} 30. Kh1 {[%clk 0:00:21.3]} 30...
Nxh3 {[%clk 0:00:29.7]} 31. Rxf6 {[%clk 0:00:16.4]} 31... Qxf6 {[%clk
0:00:29.6]} 32. Qg2 {[%clk 0:00:15.3]} 32... Nf2+ {[%clk 0:00:29.2]} 33. Kg1
{[%clk 0:00:15.3]} 33... Nxd3 {[%clk 0:00:29.7]} 34. Rf1 {[%clk 0:00:14.1]}
34... Qe6 {[%clk 0:00:26.1]} 35. Nc2 {[%clk 0:00:12.8]} 35... Qd5 {[%clk
0:00:22.2]} 36. Qxd5 {[%clk 0:00:12.2]} 36... h6 {[%clk 0:00:19.8]} 37. Nxd4
{[%clk 0:00:12.1]} 37... Re8 {[%clk 0:00:18.2]} 38. Qxf7+ {[%clk 0:00:11.8]} 1-0

[Event "Early-Titled-Tuesday-Blitz-March-19-2024"]
[Site "Chess.com"]
[Date "2024.03.19"]
[Round "2"]
[White "Niilo1"]
[Black "valeriocarnicelli"]
[Result "0-1"]
[WhiteElo "2296"]
[BlackElo "2536"]
[TimeControl "180+1"]
[EndTime "8:18:31 PDT"]
[Termination "valeriocarnicelli won on time"]

1. e4 {[%clk 0:02:59.6]} 1... e5 {[%clk 0:02:59.3]} 2. Nf3 {[%clk 0:02:59.3]}
2... Nc6 {[%clk 0:03:00]} 3. Nc3 {[%clk 0:02:59.5]} 3... Nf6 {[%clk 0:02:59.9]}
4. Bb5 {[%clk 0:02:59.7]} 4... Bb4 {[%clk 0:02:59.6]} 5. O-O {[%clk 0:02:59.9]}
5... O-O {[%clk 0:03:00.1]} 6. d3 {[%clk 0:02:58.4]} 6... d6 {[%clk 0:03:00.3]}
7. Ne2 {[%clk 0:02:58.7]} 7... Ne7 {[%clk 0:03:00.1]} 8. Ng3 {[%clk 0:02:58.3]}
8... c6 {[%clk 0:02:59.9]} 9. Ba4 {[%clk 0:02:58.1]} 9... Ng6 {[%clk 0:03:00.4]}
10. c3 {[%clk 0:02:58.5]} 10... Ba5 {[%clk 0:03:00.3]} 11. d4 {[%clk 0:02:54.9]}
11... Re8 {[%clk 0:02:47.3]} 12. Bc2 {[%clk 0:02:46.4]} 12... h6 {[%clk
0:02:41]} 13. h3 {[%clk 0:02:44.9]} 13... Bb6 {[%clk 0:02:38.2]} 14. Nf5 {[%clk
0:02:38.2]} 14... exd4 {[%clk 0:02:26.9]} 15. N3xd4 {[%clk 0:01:50.2]} 15...
Nxe4 {[%clk 0:02:24.6]} 16. Qh5 {[%clk 0:01:49.3]} 16... Bxd4 {[%clk 0:02:12.6]}
17. Nxd4 {[%clk 0:01:48.5]} 17... Nf6 {[%clk 0:02:11.3]} 18. Qf3 {[%clk
0:01:47.7]} 18... d5 {[%clk 0:02:07.3]} 19. Rd1 {[%clk 0:01:41.9]} 19... Ne4
{[%clk 0:02:02.1]} 20. Nf5 {[%clk 0:01:02.6]} 20... Bxf5 {[%clk 0:01:43.7]} 21.
Qxf5 {[%clk 0:01:02]} 21... Re5 {[%clk 0:01:39.4]} 22. Qf3 {[%clk 0:00:56.2]}
22... Qe7 {[%clk 0:01:39.5]} 23. Be3 {[%clk 0:00:53.4]} 23... b6 {[%clk
0:01:27.1]} 24. Re1 {[%clk 0:00:32.6]} 24... Re8 {[%clk 0:01:26.3]} 25. a4
{[%clk 0:00:31.5]} 25... Ng5 {[%clk 0:01:22.4]} 26. Qg3 {[%clk 0:00:29.6]} 26...
Ne4 {[%clk 0:01:22.2]} 27. Qf3 {[%clk 0:00:29.5]} 27... Nh4 {[%clk 0:01:21]} 28.
Qf4 {[%clk 0:00:26.9]} 28... g5 {[%clk 0:01:17.3]} 29. Qh2 {[%clk 0:00:26.2]}
29... Nf5 {[%clk 0:01:12.9]} 30. f4 {[%clk 0:00:19.6]} 30... Nxe3 {[%clk
0:01:02.6]} 31. Rxe3 {[%clk 0:00:20.5]} 31... Re6 {[%clk 0:01:01.6]} 32. fxg5
{[%clk 0:00:18]} 32... hxg5 {[%clk 0:01:00.2]} 33. Rf1 {[%clk 0:00:13.9]} 33...
Nd2 {[%clk 0:00:53.7]} 34. Rxe6 {[%clk 0:00:12.1]} 34... Qxe6 {[%clk 0:00:54.6]}
35. Rd1 {[%clk 0:00:10.2]} 35... Qe3+ {[%clk 0:00:50.9]} 36. Kh1 {[%clk
0:00:10]} 36... Nc4 {[%clk 0:00:41]} 37. Qc7 {[%clk 0:00:06.7]} 37... Nxb2
{[%clk 0:00:32.9]} 38. Rf1 {[%clk 0:00:06.3]} 38... Qe6 {[%clk 0:00:28.5]} 39.
Bf5 {[%clk 0:00:05.4]} 39... Qe2 {[%clk 0:00:25.9]} 40. Bd3 {[%clk 0:00:04.2]}
40... Qe7 {[%clk 0:00:17.9]} 41. Qxc6 {[%clk 0:00:04]} 41... Nxd3 {[%clk
0:00:17]} 42. Qxd5 {[%clk 0:00:02.9]} 42... Nf4 {[%clk 0:00:16.8]} 43. Qf5
{[%clk 0:00:02.6]} 43... Ng6 {[%clk 0:00:16.4]} 44. h4 {[%clk 0:00:02]} 44...
gxh4 {[%clk 0:00:16]} 45. Qh5 {[%clk 0:00:01.6]} 45... Qe6 {[%clk 0:00:15.4]}
0-1

[Event "Early-Titled-Tuesday-Blitz-March-19-2024"]
[Site "Chess.com"]
[Date "2024.03.19"]
[Round "2"]
[White "Zohid6"]
[Black "JiaHaoxiang"]
[Result "1-0"]
[WhiteElo "2890"]
[BlackElo "2614"]
[TimeControl "180+1"]
[EndTime "8:18:35 PDT"]
[Termination "Zohid6 won by resignation"]

1. e4 {[%clk 0:03:00.9]} 1... c5 {[%clk 0:02:59]} 2. Nf3 {[%clk 0:02:59.8]} 2...
d6 {[%clk 0:02:58.3]} 3. Bb5+ {[%clk 0:02:59.2]} 3... Bd7 {[%clk 0:02:57.9]} 4.
Bxd7+ {[%clk 0:02:59.2]} 4... Qxd7 {[%clk 0:02:58.7]} 5. c4 {[%clk 0:02:58.7]}
5... Nf6 {[%clk 0:02:57]} 6. Nc3 {[%clk 0:02:58.6]} 6... g6 {[%clk 0:02:56.6]}
7. O-O {[%clk 0:02:56.9]} 7... Bg7 {[%clk 0:02:56.4]} 8. d3 {[%clk 0:02:57.1]}
8... O-O {[%clk 0:02:55.1]} 9. a3 {[%clk 0:02:57.2]} 9... a6 {[%clk 0:02:55.3]}
10. Rb1 {[%clk 0:02:54.8]} 10... b5 {[%clk 0:02:55]} 11. b4 {[%clk 0:02:54.2]}
11... cxb4 {[%clk 0:02:52.5]} 12. axb4 {[%clk 0:02:54.2]} 12... Rc8 {[%clk
0:02:52.7]} 13. Nd5 {[%clk 0:02:51.6]} 13... Nxd5 {[%clk 0:02:47.5]} 14. cxd5
{[%clk 0:02:52.5]} 14... a5 {[%clk 0:02:42.3]} 15. bxa5 {[%clk 0:02:49.7]} 15...
Rxa5 {[%clk 0:02:42]} 16. Bd2 {[%clk 0:02:45.3]} 16... Ra3 {[%clk 0:02:29.5]}
17. d4 {[%clk 0:02:44.5]} 17... Na6 {[%clk 0:02:15.8]} 18. Qe2 {[%clk
0:02:40.8]} 18... Rc2 {[%clk 0:01:54]} 19. Rfc1 {[%clk 0:02:29.5]} 19... Rxc1+
{[%clk 0:01:46.7]} 20. Rxc1 {[%clk 0:02:30.4]} 20... b4 {[%clk 0:01:39.6]} 21.
Qc4 {[%clk 0:02:20.2]} 21... h5 {[%clk 0:01:27.4]} 22. h4 {[%clk 0:01:52.5]}
22... f6 {[%clk 0:01:04.8]} 23. Bxb4 {[%clk 0:01:34.9]} 23... Ra4 {[%clk
0:01:01]} 24. Qc8+ {[%clk 0:01:33.8]} 24... Qxc8 {[%clk 0:01:01.6]} 25. Rxc8+
{[%clk 0:01:34.6]} 25... Kf7 {[%clk 0:01:02.4]} 26. Bc3 {[%clk 0:01:32.7]} 26...
Bh6 {[%clk 0:01:01.7]} 27. e5 {[%clk 0:01:29.5]} 27... Nb4 {[%clk 0:00:55.6]}
28. e6+ {[%clk 0:01:21.5]} 28... Kg7 {[%clk 0:00:55.5]} 29. Rc4 {[%clk
0:01:20.3]} 29... Nxd5 {[%clk 0:00:54.9]} 30. Rxa4 {[%clk 0:01:20.4]} 30... Nxc3
{[%clk 0:00:55.3]} 31. Ra7 {[%clk 0:01:20.7]} 31... Nd5 {[%clk 0:00:55.6]} 32.
g3 {[%clk 0:01:12.3]} 32... f5 {[%clk 0:00:55.8]} 33. Ra5 {[%clk 0:01:07.1]}
33... Nc7 {[%clk 0:00:53.1]} 34. d5 {[%clk 0:01:04.2]} 34... Kf6 {[%clk
0:00:53.6]} 35. Nd4 {[%clk 0:01:02.6]} 35... Bd2 {[%clk 0:00:51.7]} 36. Ra2
{[%clk 0:01:01.4]} 36... Bc3 {[%clk 0:00:51]} 37. Ne2 {[%clk 0:01:01.5]} 37...
Bb4 {[%clk 0:00:49.5]} 38. Nf4 {[%clk 0:01:01.5]} 38... Bc5 {[%clk 0:00:47.5]}
39. Kg2 {[%clk 0:01:00.1]} 39... g5 {[%clk 0:00:43.9]} 40. hxg5+ {[%clk
0:01:01]} 40... Kxg5 {[%clk 0:00:44.8]} 41. Kf3 {[%clk 0:00:58.4]} 41... h4
{[%clk 0:00:42.6]} 42. gxh4+ {[%clk 0:00:58.2]} 42... Kxh4 {[%clk 0:00:43.5]}
43. Ng6+ {[%clk 0:00:56.3]} 43... Kg5 {[%clk 0:00:44.2]} 44. Nxe7 {[%clk
0:00:56.5]} 44... Kf6 {[%clk 0:00:44.9]} 45. Nc6 {[%clk 0:00:41.7]} 45... Nxd5
{[%clk 0:00:45]} 46. Re2 {[%clk 0:00:41.4]} 46... Nc7 {[%clk 0:00:38.5]} 47. e7
{[%clk 0:00:38.6]} 47... Ne8 {[%clk 0:00:38.9]} 48. Nb8 {[%clk 0:00:38.3]} 48...
Kf7 {[%clk 0:00:35.9]} 49. Nd7 {[%clk 0:00:36.2]} 49... Bb4 {[%clk 0:00:35.4]}
50. Kf4 {[%clk 0:00:34.7]} 50... d5 {[%clk 0:00:34.7]} 51. Ne5+ {[%clk
0:00:34.9]} 51... Kf6 {[%clk 0:00:33.5]} 52. Nd7+ {[%clk 0:00:35.3]} 52... Kf7
{[%clk 0:00:33.6]} 53. Kxf5 {[%clk 0:00:36]} 53... Bxe7 {[%clk 0:00:34]} 54.
Ne5+ {[%clk 0:00:36.5]} 54... Kg7 {[%clk 0:00:34.4]} 55. f4 {[%clk 0:00:36.6]}
55... d4 {[%clk 0:00:32.5]} 56. Rg2+ {[%clk 0:00:35.6]} 56... Kf8 {[%clk
0:00:30.1]} 57. Ke6 {[%clk 0:00:26.9]} 57... Ng7+ {[%clk 0:00:29]} 58. Rxg7
{[%clk 0:00:25.5]} 58... Kxg7 {[%clk 0:00:28.2]} 59. Kxe7 {[%clk 0:00:26.1]} 1-0

[Event "Early-Titled-Tuesday-Blitz-March-19-2024"]
[Site "Chess.com"]
[Date "2024.03.19"]
[Round "2"]
[White "laziestwin"]
[Black "rhwr"]
[Result "1-0"]
[WhiteElo "2569"]
[BlackElo "2350"]
[TimeControl "180+1"]
[EndTime "8:18:38 PDT"]
[Termination "laziestwin won by resignation"]

1. c4 {[%clk 0:02:55.2]} 1... c5 {[%clk 0:02:59.1]} 2. Nf3 {[%clk 0:02:54.4]}
2... Nc6 {[%clk 0:02:59.1]} 3. Nc3 {[%clk 0:02:54.3]} 3... g6 {[%clk 0:02:58.4]}
4. g3 {[%clk 0:02:52.6]} 4... Bg7 {[%clk 0:02:58.6]} 5. Bg2 {[%clk 0:02:53.3]}
5... e6 {[%clk 0:02:57]} 6. O-O {[%clk 0:02:53.8]} 6... Nge7 {[%clk 0:02:57.2]}
7. e3 {[%clk 0:02:20.1]} 7... O-O {[%clk 0:02:55.7]} 8. Rb1 {[%clk 0:02:12.3]}
8... a6 {[%clk 0:02:52]} 9. a3 {[%clk 0:02:12.1]} 9... Rb8 {[%clk 0:02:50]} 10.
b4 {[%clk 0:02:11.9]} 10... cxb4 {[%clk 0:02:49.9]} 11. axb4 {[%clk 0:02:11.8]}
11... b5 {[%clk 0:02:50.3]} 12. c5 {[%clk 0:01:55.6]} 12... d6 {[%clk
0:02:40.2]} 13. d4 {[%clk 0:01:54.8]} 13... dxc5 {[%clk 0:02:40.6]} 14. bxc5
{[%clk 0:01:54.2]} 14... b4 {[%clk 0:02:36.1]} 15. Ne4 {[%clk 0:01:46.1]} 15...
a5 {[%clk 0:02:33.1]} 16. Nd6 {[%clk 0:01:45]} 16... Ba6 {[%clk 0:02:32.7]} 17.
Re1 {[%clk 0:01:43.5]} 17... Nd5 {[%clk 0:02:32]} 18. Bd2 {[%clk 0:01:37.3]}
18... Bd3 {[%clk 0:02:28]} 19. Ra1 {[%clk 0:01:14.1]} 19... f5 {[%clk
0:02:26.8]} 20. h4 {[%clk 0:01:05.6]} 20... h6 {[%clk 0:02:21.5]} 21. Qb3 {[%clk
0:00:44.8]} 21... Bb5 {[%clk 0:02:10.7]} 22. Nxb5 {[%clk 0:00:10.5]} 22... Rxb5
{[%clk 0:02:11.6]} 23. e4 {[%clk 0:00:11]} 23... fxe4 {[%clk 0:02:05.7]} 24.
Rxe4 {[%clk 0:00:11.9]} 24... Qd7 {[%clk 0:01:47]} 25. h5 {[%clk 0:00:06.9]}
25... g5 {[%clk 0:01:45.3]} 26. Rae1 {[%clk 0:00:07.3]} 26... Nd8 {[%clk
0:01:42.9]} 27. Bh3 {[%clk 0:00:06.9]} 27... a4 {[%clk 0:01:32.7]} 28. Qxa4
{[%clk 0:00:07.3]} 28... Rxf3 {[%clk 0:01:32.5]} 29. Rxe6 {[%clk 0:00:08]} 29...
Qb7 {[%clk 0:01:22.7]} 30. Re8+ {[%clk 0:00:06.1]} 30... Rf8 {[%clk 0:01:23.6]}
31. Rxf8+ {[%clk 0:00:04.5]} 31... Bxf8 {[%clk 0:01:23.9]} 32. Bf1 {[%clk
0:00:04.1]} 32... Nc7 {[%clk 0:01:19.3]} 33. Bxb5 {[%clk 0:00:03]} 33... Qxb5
{[%clk 0:01:20.2]} 34. Qxb5 {[%clk 0:00:03.4]} 34... Nxb5 {[%clk 0:01:20.5]} 35.
Bxb4 {[%clk 0:00:01.8]} 35... Nxd4 {[%clk 0:01:19.4]} 36. Bc3 {[%clk 0:00:02.6]}
36... N8c6 {[%clk 0:01:19.8]} 37. Re4 {[%clk 0:00:02.7]} 37... Nb3 {[%clk
0:01:17.9]} 38. Re6 {[%clk 0:00:01.7]} 38... Nbd4 {[%clk 0:01:14.9]} 39. Rg6+
{[%clk 0:00:02.3]} 39... Kf7 {[%clk 0:01:14.7]} 40. Kg2 {[%clk 0:00:02.9]} 40...
Bxc5 {[%clk 0:01:13.3]} 41. Rxh6 {[%clk 0:00:02.6]} 41... g4 {[%clk 0:01:08.9]}
42. Rg6 {[%clk 0:00:02.5]} 42... Ne5 {[%clk 0:01:05]} 43. Rg5 {[%clk 0:00:03.1]}
43... Kf6 {[%clk 0:01:03.9]} 44. Rg8 {[%clk 0:00:02.1]} 44... Ndf3 {[%clk
0:00:59.8]} 45. Rc8 {[%clk 0:00:02.1]} 45... Bd6 {[%clk 0:00:56.5]} 46. h6
{[%clk 0:00:02.4]} 46... Kg6 {[%clk 0:00:56.8]} 47. Re8 {[%clk 0:00:02.1]} 47...
Kxh6 {[%clk 0:00:56.3]} 48. Re6+ {[%clk 0:00:02.7]} 48... Kg5 {[%clk 0:00:56.4]}
49. Rxd6 {[%clk 0:00:03.4]} 49... Kf5 {[%clk 0:00:56.8]} 50. Rd5 {[%clk
0:00:04]} 50... Ke4 {[%clk 0:00:56.5]} 51. Ra5 {[%clk 0:00:03]} 51... Nd3 {[%clk
0:00:56.2]} 52. Ra4+ {[%clk 0:00:02.7]} 52... Kf5 {[%clk 0:00:55.4]} 53. Kf1
{[%clk 0:00:02.7]} 53... Nde5 {[%clk 0:00:53.8]} 54. Rf4+ {[%clk 0:00:02]} 54...
Kg5 {[%clk 0:00:54]} 55. Bxe5 {[%clk 0:00:02.9]} 55... Nxe5 {[%clk 0:00:54.1]}
56. Ke2 {[%clk 0:00:03.6]} 56... Nf3 {[%clk 0:00:54.2]} 57. Rxf3 {[%clk
0:00:03.6]} 57... gxf3+ {[%clk 0:00:54.5]} 58. Kxf3 {[%clk 0:00:04.5]} 58... Kf5
{[%clk 0:00:54.2]} 59. g4+ {[%clk 0:00:05.1]} 59... Kg5 {[%clk 0:00:53.9]} 60.
Kg3 {[%clk 0:00:06]} 60... Kg6 {[%clk 0:00:51.6]} 61. f4 {[%clk 0:00:06.9]}
61... Kg7 {[%clk 0:00:51.8]} 62. Kh4 {[%clk 0:00:07.4]} 62... Kg8 {[%clk
0:00:52]} 63. f5 {[%clk 0:00:08.3]} 63... Kg7 {[%clk 0:00:52.3]} 64. Kg5 {[%clk
0:00:09.2]} 64... Kg8 {[%clk 0:00:52.9]} 65. f6 {[%clk 0:00:10.1]} 65... Kh8
{[%clk 0:00:53.2]} 66. Kg6 {[%clk 0:00:10.3]} 66... Kg8 {[%clk 0:00:53.6]} 67.
f7+ {[%clk 0:00:10.2]} 67... Kf8 {[%clk 0:00:54]} 68. g5 {[%clk 0:00:10.8]}
68... Ke7 {[%clk 0:00:53.7]} 69. Kg7 {[%clk 0:00:11.5]} 1-0

[Event "Early-Titled-Tuesday-Blitz-March-19-2024"]
[Site "Chess.com"]
[Date "2024.03.19"]
[Round "2"]
[White "BashiqChess"]
[Black "shirovin"]
[Result "1-0"]
[WhiteElo "2457"]
[BlackElo "2048"]
[TimeControl "180+1"]
[EndTime "8:18:38 PDT"]
[Termination "BashiqChess won on time"]

1. Nf3 {[%clk 0:03:00.9]} 1... Nf6 {[%clk 0:02:58.5]} 2. b3 {[%clk 0:02:58.3]}
2... g6 {[%clk 0:02:56.2]} 3. Bb2 {[%clk 0:02:58.5]} 3... Bg7 {[%clk 0:02:56.7]}
4. g3 {[%clk 0:02:58.7]} 4... c5 {[%clk 0:02:57.3]} 5. c4 {[%clk 0:02:58.6]}
5... Nc6 {[%clk 0:02:56.5]} 6. Bg2 {[%clk 0:02:58.9]} 6... O-O {[%clk
0:02:53.1]} 7. O-O {[%clk 0:02:59.3]} 7... d5 {[%clk 0:02:45.9]} 8. cxd5 {[%clk
0:02:59.6]} 8... Nxd5 {[%clk 0:02:45.1]} 9. Bxg7 {[%clk 0:03:00.3]} 9... Kxg7
{[%clk 0:02:44.7]} 10. d4 {[%clk 0:03:01.2]} 10... cxd4 {[%clk 0:02:14.7]} 11.
Nxd4 {[%clk 0:03:02.1]} 11... Ndb4 {[%clk 0:02:14.1]} 12. Nxc6 {[%clk
0:02:59.2]} 12... Nxc6 {[%clk 0:02:13.1]} 13. Bxc6 {[%clk 0:02:59.8]} 13... bxc6
{[%clk 0:02:12.7]} 14. Qc2 {[%clk 0:02:39.5]} 14... Bf5 {[%clk 0:02:08.9]} 15.
e4 {[%clk 0:02:37.8]} 15... Bh3 {[%clk 0:02:07.3]} 16. Rd1 {[%clk 0:02:35.4]}
16... Qb6 {[%clk 0:02:06.4]} 17. Nc3 {[%clk 0:02:30.3]} 17... Rad8 {[%clk
0:02:04.9]} 18. Na4 {[%clk 0:02:25]} 18... Qb5 {[%clk 0:01:52]} 19. Qc3+ {[%clk
0:01:58.9]} 19... Kg8 {[%clk 0:01:50]} 20. Qe3 {[%clk 0:01:55.2]} 20... Bg4
{[%clk 0:01:31.1]} 21. f3 {[%clk 0:01:52.9]} 21... Be6 {[%clk 0:01:24.7]} 22.
Rac1 {[%clk 0:01:24.2]} 22... a5 {[%clk 0:01:21.2]} 23. Kf2 {[%clk 0:01:14.2]}
23... Qh5 {[%clk 0:01:11.3]} 24. h4 {[%clk 0:01:08.9]} 24... Qb5 {[%clk
0:00:57.3]} 25. Qe2 {[%clk 0:00:56.1]} 25... Qb7 {[%clk 0:00:43.4]} 26. Qe3
{[%clk 0:00:40.9]} 26... Rd6 {[%clk 0:00:33.3]} 27. Nc5 {[%clk 0:00:38.6]} 27...
Qb4 {[%clk 0:00:23]} 28. Nxe6 {[%clk 0:00:24]} 28... fxe6 {[%clk 0:00:21.8]} 29.
Rxd6 {[%clk 0:00:22.5]} 29... Qxd6 {[%clk 0:00:18.6]} 30. Kg2 {[%clk 0:00:09.7]}
30... Rd8 {[%clk 0:00:17.3]} 31. Qf2 {[%clk 0:00:09.4]} 31... e5 {[%clk
0:00:13.3]} 32. Rc2 {[%clk 0:00:09.6]} 32... a4 {[%clk 0:00:10.4]} 33. bxa4
{[%clk 0:00:08.6]} 33... Ra8 {[%clk 0:00:09.7]} 34. Rc4 {[%clk 0:00:05.7]} 34...
Qd3 {[%clk 0:00:08.4]} 35. Qc2 {[%clk 0:00:05.6]} 35... Qxc2+ {[%clk 0:00:07.2]}
36. Rxc2 {[%clk 0:00:06.5]} 36... Rxa4 {[%clk 0:00:06.8]} 37. g4 {[%clk
0:00:06.6]} 37... Kf7 {[%clk 0:00:05.9]} 38. Kg3 {[%clk 0:00:04.6]} 38... Ke8
{[%clk 0:00:06.1]} 39. Rxc6 {[%clk 0:00:04.9]} 39... Rxa2 {[%clk 0:00:04.6]} 40.
Rc5 {[%clk 0:00:05.7]} 40... Ra3 {[%clk 0:00:02.2]} 41. Rxe5 {[%clk 0:00:06.2]}
41... Kf7 {[%clk 0:00:02.7]} 42. Rb5 {[%clk 0:00:06.1]} 42... Rd3 {[%clk
0:00:01.6]} 43. h5 {[%clk 0:00:06.3]} 1-0